fUSD/lending_fUSD_20250407
["ID","MTS","AMOUNT","RATE_DAILY","PERIOD"]
[357313952,1744004552235,-540.74,0.00051506,120]
[357313953,1744004552276,-203.5437147,0.00051506,120]
[357313954,1744004552318,-500.0,0.0005178,120]
[357313955,1744004552360,-540.74,0.0005178,120]
[357313956,1744004552403,-573.67978634,0.00052054,120]
[357313957,1744004552445,-540.74,0.00052054,120]
[357313958,1744004552487,-540.74,0.00052328,120]
[357313959,1744004552528,-540.74,0.00052602,120]
[357313960,1744004552569,-540.74,0.00052876,120]
[357313961,1744004552608,-540.74,0.0005315,120]
[357313962,1744004552648,-540.74,0.00053424,120]
[357313963,1744004552688,-540.74,0.00053698,120]
[357313964,1744004552726,-540.74,0.00053972,120]
[357313965,1744004552768,-540.74,0.00054246,120]
[357313966,1744004552810,-540.74,0.0005452,120]
[357313967,1744004552853,-540.74,0.00054794,120]
[357313968,1744004552888,-684.92110019,0.000549,30]
[357313969,1744004552926,-540.74,0.00055068,120]
[357313970,1744004552964,-540.74,0.00055342,120]
[357313971,1744004553001,-252026.80965597,0.000555,120]
[357313972,1744004553041,-1000000.0,0.000555,120]
[357313973,1744004553079,-151.0,0.000555,120]
[357313974,1744004553118,-152.493517,0.000555,120]
[357313975,1744004553161,-2000.0,0.0005555,32]
[357313976,1744004553207,-9039.39,0.000556,60]
[357313977,1744004553250,-21080.85207494,0.00055616,30]
[357313978,1744004553293,-21080.85207494,0.00055616,30]
[357313979,1744004553343,-1607.30325415,0.00055616,120]
[357313980,1744004553386,-699.19669872,0.00055616,120]
[357313981,1744004553429,-761.61911434,0.00055616,120]
[357313982,1744004553472,-869.60350955,0.00055616,120]
[357313983,1744004553514,-319.28025155,0.00055616,120]
[357313984,1744004553554,-543.88295277,0.00055616,120]
[357313985,1744004553595,-801.0040255,0.00055616,120]
[357313986,1744004553643,-695.46241409,0.00055616,120]
[357313987,1744004553693,-517.11259551,0.00055616,120]
[357313988,1744004553743,-4838.55844616,0.00055616,120]
[357313989,1744004553796,-1085.31711475,0.00055616,120]
[357313990,1744004553845,-598.36436061,0.00055616,120]
[357313991,1744004553888,-3054.54419506,0.00055616,30]
[357313992,1744004553931,-2579.1640875,0.00055616,120]
[357313993,1744004553976,-816.35129574,0.00055616,120]
[357313994,1744004554232,-581.80868876,0.00055616,120]
[357313995,1744004554281,-277.7962085,0.00055616,120]
[357313996,1744004554328,-992.59767821,0.00055616,120]
[357313997,1744004554374,-672.02786402,0.00055616,120]
[357313998,1744004554422,-706.83370766,0.00055616,120]
[357313999,1744004554468,-1151.06772654,0.00055616,120]
[357314000,1744004554513,-784.42524478,0.00055616,100]
[357314001,1744004554559,-601.8444237,0.00055616,120]
[357314002,1744004554605,-11980.72270865,0.00055616,120]
[357314003,1744004554651,-1512.48747189,0.00055616,120]
[357314004,1744004554700,-559.69446975,0.00055616,120]
[357314005,1744004554746,-906.36824252,0.00055616,120]
[357314006,1744004554790,-767.21030404,0.00055616,120]
[357314007,1744004554832,-1010.88378078,0.00055616,120]
[357314008,1744004554896,-606.16538197,0.00055616,120]
[357314009,1744004554943,-778.16881786,0.00055616,120]
[357314010,1744004554986,-732.82412767,0.00055616,120]
[357314011,1744004555026,-3671.62378953,0.00055616,120]
[357314012,1744004555067,-509.80125747,0.00055616,120]
[357314013,1744004555106,-1016.90613123,0.00055616,120]
[357314014,1744004555148,-5780.16223999,0.00055616,120]
[357314015,1744004555189,-602.64321414,0.00055616,120]
[357314016,1744004555228,-540.75504615,0.00055616,120]
[357314017,1744004555270,-442.65,0.00055833,120]
[357314018,1744004555310,-3254.348389,0.000559,30]
[357314019,1744004555354,-50000.0,0.00056,56]
[357314020,1744004555396,-1000000.0,0.00056,120]
[357314021,1744004555441,-546242.91820545,0.00056,120]
[357314022,1744004559592,-539.23578097,0.00049315,120]
[357314023,1744004559635,-500.0,0.00049315,120]
[357314024,1744004559679,-557.55,0.00049315,120]
[357314025,1744004559723,-500.0,0.00049315,120]
[357314026,1744004559767,-500.0,0.00049315,120]
[357314027,1744004559810,-500.0,0.00049315,120]
[357314028,1744004559852,-500.0,0.00049315,120]
[357314029,1744004559895,-500.0,0.00049315,120]
[357314030,1744004559935,-500.0,0.00049315,120]
[357314031,1744004559979,-500.0,0.00049589,120]
[357314032,1744004560014,-500.0,0.00049589,120]
[357314033,1744004560048,-557.55,0.00049589,120]
[357314034,1744004560083,-500.0,0.00049589,120]
[357314035,1744004560126,-500.0,0.00049589,120]
[357314036,1744004560163,-188.49601191,0.00049589,120]
[357314037,1744004560200,-500.0,0.00049589,120]
[357314038,1744004560236,-500.0,0.00049589,120]
[357314039,1744004560273,-500.0,0.00049863,120]
[357314040,1744004560309,-400.18741086,0.00049863,120]
[357314041,1744004560346,-557.55,0.00049863,120]
[357314042,1744004560382,-549.43938984,0.00049863,120]
[357314043,1744004560421,-500.0,0.00049863,120]
[357314044,1744004560461,-500.0,0.00049863,120]
[357314045,1744004560504,-500.0,0.00049863,120]
[357314046,1744004560547,-500.0,0.00050136,120]
[357314047,1744004560586,-557.55,0.00050136,120]
[357314048,1744004560627,-162.37028583,0.00050136,120]
[357314049,1744004560668,-500.0,0.00050136,120]
[357314050,1744004560709,-500.0,0.00050136,120]
[357314051,1744004560748,-151.0,0.000504,120]
[357314052,1744004560784,-151.0,0.000504,120]
[357314053,1744004560820,-500.0,0.0005041,120]
[357314054,1744004560855,-557.55,0.0005041,120]
[357314055,1744004560890,-500.0,0.0005041,120]
[357314056,1744004561095,-500.0,0.00050684,120]
[357314057,1744004561136,-557.55,0.00050684,120]
[357314058,1744004561176,-500.0,0.00050958,120]
[357314059,1744004561215,-151.0,0.00050958,120]
[357314060,1744004561253,-557.55,0.00050958,120]
[357314061,1744004561295,-151.0,0.00050958,120]
[357314062,1744004561332,-500.0,0.00051232,120]
[357314063,1744004561368,-151.0,0.00051232,120]
[357314064,1744004561406,-557.55,0.00051232,120]
[357314065,1744004561449,-151.0,0.00051232,120]
[357314066,1744004561489,-500.0,0.00051506,120]
[357314067,1744004561528,-557.55,0.00051506,120]
[357314068,1744004561566,-500.0,0.0005178,120]
[357314069,1744004561604,-151.0,0.0005178,120]
[357314070,1744004561640,-557.55,0.0005178,120]
[357314071,1744004561679,-151.0,0.0005178,120]
[357314072,1744004561718,-151.0,0.00052,120]
[357314073,1744004561755,-151.0,0.00052,120]
[357314074,1744004561796,-500.0,0.00052054,120]
[357314075,1744004561834,-557.55,0.00052054,120]
[357314076,1744004561870,-500.0,0.00052328,120]
[357314077,1744004561905,-557.55,0.00052328,120]
[357314078,1744004561943,-500.0,0.00052602,120]
[357314079,1744004561978,-151.0,0.00052602,120]
[357314080,1744004562014,-557.55,0.00052602,120]
[357314081,1744004562051,-165.034964,0.00052602,120]
[357314082,1744004562088,-151.0,0.000528,120]
[357314083,1744004562125,-500.0,0.00052876,120]
[357314084,1744004562162,-557.55,0.00052876,120]
[357314085,1744004562201,-500.0,0.0005315,120]
[357314086,1744004562238,-557.55,0.0005315,120]
[357314087,1744004562276,-411.04493275,0.00053424,120]
[357314088,1744004562313,-557.55,0.00053424,120]
[357314089,1744004562352,-150.0,0.00053424,120]
[357314090,1744004562390,-557.55,0.00053698,120]
[357314091,1744004562430,-557.55,0.00053972,120]
[357314092,1744004562468,-151.0,0.00054,120]
[357314093,1744004562506,-557.55,0.00054246,120]
[357314094,1744004562542,-557.55,0.0005452,120]
[357314095,1744004562577,-557.55,0.00054794,120]
[357314096,1744004562613,-151.0,0.00054795,120]
[357314097,1744004562648,-151.0,0.00054795,120]
[357314098,1744004562683,-151.0,0.00055,120]
[357314099,1744004562718,-151.0,0.00055,120]
[357314100,1744004562755,-153.991171,0.00055,120]
[357314101,1744004562795,-557.55,0.00055068,120]
[357314102,1744004562832,-557.55,0.00055342,120]
[357314103,1744004562871,-151.0,0.000555,120]
[357314104,1744004562909,-151.0,0.00055616,120]
[357314105,1744004562953,-557.75403339,0.00055616,120]
[357314106,1744004562994,-453757.08179455,0.00056,120]
[357314107,1744004563032,-500.0,0.00056,120]
[357314108,1744004563070,-500.0,0.00056,120]
[357314109,1744004563107,-707.0,0.00056,120]
[357314110,1744004563150,-151.0,0.00056,120]
[357314111,1744004563194,-250.0,0.00056,57]
[357314112,1744004563238,-500.0,0.00056007,120]
[357314113,1744004563280,-500.0,0.00056164,120]
[357314114,1744004563320,-684.92110018,0.00056167,30]
[357314115,1744004563363,-2000000.0,0.000565,120]
[357314116,1744004563406,-210.0,0.000565,30]
[357314117,1744004563453,-152.165117,0.000565,120]
[357314118,1744004563497,-500.0,0.00056555,120]
[357314119,1744004563541,-9039.39,0.000566,60]
[357314120,1744004563584,-448.58491919,0.00056633,120]
[357314121,1744004563627,-2000.0,0.0005664,32]
[357314122,1744004563668,-3797.97428402,0.00056888,120]
[357314123,1744004563714,-50000.0,0.00057,57]
[357314124,1744004563755,-441331.67880451,0.00057,120]
[357314125,1744004568881,-587.89723604,0.00049315,120]
[357314126,1744004568919,-500.0,0.00049315,120]
[357314127,1744004568957,-500.0,0.00049315,120]
[357314128,1744004568994,-500.0,0.00049315,120]
[357314129,1744004569037,-352.32431576,0.00049589,120]
[357314130,1744004569074,-500.0,0.00049589,120]
[357314131,1744004569112,-500.0,0.00049589,120]
[357314132,1744004569333,-500.0,0.00049589,120]
[357314133,1744004569378,-500.0,0.00049863,120]
[357314134,1744004569421,-500.0,0.00049863,120]
[357314135,1744004569467,-500.0,0.00049863,120]
[357314136,1744004569509,-500.0,0.00050136,120]
[357314137,1744004569549,-500.0,0.00050136,120]
[357314138,1744004569590,-500.0,0.0005041,120]
[357314139,1744004569629,-500.0,0.0005041,120]
[357314140,1744004569670,-500.0,0.0005041,120]
[357314141,1744004569713,-500.0,0.00050684,120]
[357314142,1744004569753,-500.0,0.00050684,120]
[357314143,1744004569796,-500.0,0.00050684,120]
[357314144,1744004569837,-500.0,0.00050684,120]
[357314145,1744004569879,-182.45566523,0.00050958,120]
[357314146,1744004569919,-500.0,0.00050958,120]
[357314147,1744004569959,-500.0,0.00050958,120]
[357314148,1744004569998,-500.0,0.00050958,120]
[357314149,1744004570037,-500.0,0.00051232,120]
[357314150,1744004570075,-500.0,0.00051232,120]
[357314151,1744004570113,-500.0,0.00051232,120]
[357314152,1744004570150,-405.54,0.00051506,120]
[357314153,1744004570189,-500.0,0.00051506,120]
[357314154,1744004570227,-500.0,0.00051506,120]
[357314155,1744004570266,-500.0,0.0005178,120]
[357314156,1744004570305,-500.0,0.0005178,120]
[357314157,1744004570349,-500.0,0.00052054,120]
[357314158,1744004570392,-500.0,0.00052054,120]
[357314159,1744004570438,-500.0,0.00052328,120]
[357314160,1744004570479,-500.0,0.00052328,120]
[357314161,1744004570519,-500.0,0.00052602,120]
[357314162,1744004570559,-500.0,0.00052602,120]
[357314163,1744004570598,-500.0,0.00052876,120]
[357314164,1744004570636,-500.0,0.00052876,120]
[357314165,1744004570675,-500.0,0.0005315,120]
[357314166,1744004570717,-500.0,0.0005315,120]
[357314167,1744004570756,-500.0,0.00053424,120]
[357314168,1744004570796,-500.0,0.00053424,120]
[357314169,1744004570836,-500.0,0.00053698,120]
[357314170,1744004570878,-340.20527177,0.00053698,120]
[357314171,1744004570918,-500.0,0.00053972,120]
[357314172,1744004570962,-500.0,0.00054246,120]
[357314173,1744004571004,-500.0,0.0005452,120]
[357314174,1744004571046,-621.7649708,0.00054794,120]
[357314175,1744004571087,-151.0,0.000555,120]
[357314176,1744004571128,-151.0,0.00055616,120]
[357314177,1744004571169,-151.0,0.00056,120]
[357314178,1744004571212,-151.0,0.000565,120]
[357314179,1744004571257,-558668.32119549,0.00057,120]
[357314180,1744004571302,-1000000.0,0.00057,120]
[357314181,1744004571346,-500.0,0.00057,120]
[357314182,1744004571390,-500.0,0.00057,120]
[357314183,1744004571437,-250.0,0.00057,58]
[357314184,1744004571482,-207.0,0.00057,120]
[357314185,1744004571525,-151.0,0.00057,120]
[357314186,1744004571567,-500.0,0.00057103,120]
[357314187,1744004571610,-684.92110018,0.00057434,30]
[357314188,1744004571653,-1413444.57024473,0.000575,120]
[357314189,1744004576587,-500.0,0.00049315,120]
[357314190,1744004576645,-500.0,0.00049315,120]
[357314191,1744004576692,-500.0,0.00049315,120]
[357314192,1744004576740,-500.0,0.00049315,120]
[357314193,1744004576789,-500.0,0.00049315,120]
[357314194,1744004576839,-500.0,0.00049315,120]
[357314195,1744004576898,-598.50796056,0.00049589,120]
[357314196,1744004576941,-500.0,0.00049589,120]
[357314197,1744004576988,-500.0,0.00049589,120]
[357314198,1744004577027,-500.0,0.00049589,120]
[357314199,1744004577072,-500.0,0.00049589,120]
[357314200,1744004577117,-556.08073159,0.00049589,120]
[357314201,1744004577165,-500.0,0.00049863,120]
[357314202,1744004577219,-500.0,0.00049863,120]
[357314203,1744004577270,-500.0,0.00049863,120]
[357314204,1744004577314,-500.0,0.00049863,120]
[357314205,1744004577360,-500.0,0.00050136,120]
[357314206,1744004577411,-500.0,0.00050136,120]
[357314207,1744004577455,-500.0,0.00050136,120]
[357314208,1744004577504,-373.7949537,0.00050136,120]
[357314209,1744004577550,-500.0,0.0005041,120]
[357314210,1744004577740,-500.0,0.0005041,120]
[357314211,1744004577788,-306.6692186,0.0005041,120]
[357314212,1744004577835,-500.0,0.00050684,120]
[357314213,1744004577877,-500.0,0.00050684,120]
[357314214,1744004577915,-500.0,0.00050958,120]
[357314215,1744004577960,-500.0,0.00050958,120]
[357314216,1744004578000,-336.38831371,0.00051232,120]
[357314217,1744004578045,-500.0,0.00051232,120]
[357314218,1744004578104,-500.0,0.00051506,120]
[357314219,1744004578157,-500.0,0.0005178,120]
[357314220,1744004578203,-500.0,0.00052054,120]
[357314221,1744004578254,-500.0,0.00052328,120]
[357314222,1744004578305,-500.0,0.00052602,120]
[357314223,1744004578350,-500.0,0.00052876,120]
[357314224,1744004578403,-500.0,0.0005315,120]
[357314225,1744004578454,-500.0,0.00053424,120]
[357314226,1744004578505,-150.0,0.00053424,120]
[357314227,1744004578563,-500.0,0.00053698,120]
[357314228,1744004578610,-168.65080698,0.00053972,120]
[357314229,1744004578659,-586555.42975527,0.000575,120]
[357314230,1744004578704,-500.0,0.00057534,120]
[357314231,1744004578758,-274.88,0.00057534,120]
[357314232,1744004578811,-500.0,0.00057651,120]
[357314233,1744004578857,-500.0,0.00057672,120]
[357314234,1744004578906,-1066.0,0.0005775,120]
[357314235,1744004578955,-354214.72273856,0.00057998,30]
[357314236,1744004579002,-50000.0,0.00058,58]
[357314237,1744004579050,-1000000.0,0.00058,120]
[357314238,1744004579101,-987398.87552103,0.00058,120]
[357314239,1744004582089,-500.0,0.00049315,120]
[357314240,1744004582132,-611.18,0.00049315,120]
[357314241,1744004582182,-201.67280096,0.00049315,120]
[357314242,1744004582237,-500.0,0.00049315,120]
[357314243,1744004582290,-500.0,0.00049589,120]
[357314244,1744004582335,-611.18,0.00049589,120]
[357314245,1744004582380,-500.0,0.00049589,120]
[357314246,1744004582430,-500.0,0.00049863,120]
[357314247,1744004582480,-611.18,0.00049863,120]
[357314248,1744004582524,-500.0,0.00049863,120]
[357314249,1744004582567,-433.43849767,0.00050136,120]
[357314250,1744004582609,-611.18,0.00050136,120]
[357314251,1744004582651,-500.0,0.00050136,120]
[357314252,1744004582696,-611.18,0.0005041,120]
[357314253,1744004582737,-419.57671548,0.0005041,120]
[357314254,1744004582779,-611.18,0.00050684,120]
[357314255,1744004582819,-611.18,0.00050958,120]
[357314256,1744004582860,-611.18,0.00051232,120]
[357314257,1744004582898,-611.18,0.00051506,120]
[357314258,1744004582941,-611.18,0.0005178,120]
[357314259,1744004582979,-611.18,0.00052054,120]
[357314260,1744004583019,-611.18,0.00052328,120]
[357314261,1744004583060,-611.18,0.00052602,120]
[357314262,1744004583103,-611.18,0.00052876,120]
[357314263,1744004583148,-611.18,0.0005315,120]
[357314264,1744004583192,-611.18,0.00053424,120]
[357314265,1744004583235,-611.18,0.00053698,120]
[357314266,1744004583275,-611.18,0.00053972,120]
[357314267,1744004583316,-611.18,0.00054246,120]
[357314268,1744004583359,-595.18,0.00056767,120]
[357314269,1744004583403,-11249.32,0.00057,60]
[357314270,1744004583447,-150.0,0.00057651,120]
[357314271,1744004583491,-12601.12447897,0.00058,120]
[357314272,1744004583531,-219.69,0.00058,30]
[357314273,1744004583574,-500.0,0.00058,120]
[357314274,1744004583619,-86421.09678105,0.00058,120]
[357314275,1744004583666,-500.0,0.00058,120]
[357314276,1744004583716,-2038.0,0.00058,30]
[357314277,1744004583763,-250.0,0.00058,59]
[357314278,1744004583814,-8025.16,0.00058,30]
[357314279,1744004583858,-600.0,0.00058,120]
[357314280,1744004583902,-360.0,0.00058,120]
[357314281,1744004583945,-530.0,0.00058,120]
[357314282,1744004583989,-181.71948,0.00058,120]
[357314283,1744004584034,-707.0,0.00058,120]
[357314284,1744004584079,-274.670781,0.00058,120]
[357314285,1744004584123,-962.0,0.00058073,30]
[357314286,1744004584167,-210.0,0.0005843,30]
[357314287,1744004584212,-2000000.0,0.000585,120]
[357314288,1744004584257,-962.0,0.00058671,30]
[357314289,1744004584304,-2000.0,0.0005869,32]
[357314290,1744004584351,-150.0133113,0.000587,120]
[357314291,1744004584396,-5168.94,0.000589,120]
[357314292,1744004584440,-2046.46,0.000589,120]
[357314293,1744004584484,-1912.07,0.000589,120]
[357314294,1744004584528,-11801.69,0.000589,120]
[357314295,1744004584726,-5167.01,0.000589,120]
[357314296,1744004584771,-500.0,0.00058904,120]
[357314297,1744004584823,-50000.0,0.00059,59]
[357314298,1744004584869,-999.14107611,0.00059,61]
[357314299,1744004584918,-86963.571479,0.00059,61]
[357314300,1744004584962,-500.0,0.00059,120]
[357314301,1744004585004,-125422.08051061,0.00059,120]
[357314302,1744004585046,-4700.0,0.00059,120]
[357314303,1744004585089,-559164.95408785,0.00059,120]
[357314304,1744004589574,-500.0,0.00049315,120]
[357314305,1744004589615,-500.0,0.00049315,120]
[357314306,1744004589658,-500.0,0.00049315,120]
[357314307,1744004589703,-500.0,0.00049589,120]
[357314308,1744004589742,-500.0,0.00049589,120]
[357314309,1744004589783,-500.0,0.00049589,120]
[357314310,1744004589823,-500.0,0.00049863,120]
[357314311,1744004589864,-637.81755734,0.00049863,120]
[357314312,1744004589903,-500.0,0.00049863,120]
[357314313,1744004589947,-500.0,0.00050136,120]
[357314314,1744004589988,-500.0,0.00050136,120]
[357314315,1744004590029,-500.0,0.0005041,120]
[357314316,1744004590070,-500.0,0.00050684,120]
[357314317,1744004590112,-500.0,0.00050958,120]
[357314318,1744004590157,-500.0,0.00051232,120]
[357314319,1744004590205,-500.0,0.00051506,120]
[357314320,1744004590251,-500.0,0.0005178,120]
[357314321,1744004590297,-524.88949318,0.00052054,120]
[357314322,1744004590344,-611.18,0.0005452,120]
[357314323,1744004590386,-611.18,0.00054794,120]
[357314324,1744004590429,-611.18,0.00055068,120]
[357314325,1744004590477,-611.18,0.00055342,120]
[357314326,1744004590520,-151.0,0.000555,120]
[357314327,1744004590562,-611.27731603,0.00055616,120]
[357314328,1744004590601,-151.0,0.00055616,120]
[357314329,1744004590640,-152.060409,0.00056,120]
[357314330,1744004590678,-500.0,0.00056007,120]
[357314331,1744004590723,-440835.04591215,0.00059,120]
[357314332,1744004590762,-1000000.0,0.00059,120]
[357314333,1744004590798,-608.03355455,0.00059,120]
[357314334,1744004590834,-500.0,0.00059,120]
[357314335,1744004590870,-7000.0,0.00059,120]
[357314336,1744004590905,-250.0,0.00059,60]
[357314337,1744004590944,-324.0,0.00059,120]
[357314338,1744004590982,-449.35679,0.00059,96]
[357314339,1744004591020,-962.0,0.0005927,30]
[357314340,1744004591059,-1535898.79896775,0.000595,120]
[357314341,1744004605025,-331.84268259,0.00049315,120]
[357314342,1744004605067,-500.0,0.00049315,120]
[357314343,1744004605112,-500.0,0.00049315,120]
[357314344,1744004605152,-500.0,0.00049315,120]
[357314345,1744004605191,-500.0,0.00049315,120]
[357314346,1744004605231,-500.0,0.00049315,120]
[357314347,1744004605271,-502.02,0.00049315,120]
[357314348,1744004605310,-500.0,0.00049315,120]
[357314349,1744004605359,-500.0,0.00049589,120]
[357314350,1744004605398,-500.0,0.00049589,120]
[357314351,1744004605438,-500.0,0.00049589,120]
[357314352,1744004605477,-500.0,0.00049589,120]
[357314353,1744004605514,-500.0,0.00049589,120]
[357314354,1744004605550,-502.02,0.00049589,120]
[357314355,1744004605587,-500.0,0.00049589,120]
[357314356,1744004605624,-500.0,0.00049863,120]
[357314357,1744004605662,-500.0,0.00049863,120]
[357314358,1744004605699,-500.0,0.00049863,120]
[357314359,1744004605736,-500.0,0.00049863,120]
[357314360,1744004605772,-500.0,0.00049863,120]
[357314361,1744004605809,-502.02,0.00049863,120]
[357314362,1744004605844,-500.0,0.00049863,120]
[357314363,1744004605882,-500.0,0.00050136,120]
[357314364,1744004605917,-500.0,0.00050136,120]
[357314365,1744004605952,-500.0,0.00050136,120]
[357314366,1744004605992,-500.0,0.00050136,120]
[357314367,1744004606032,-500.0,0.00050136,120]
[357314368,1744004606070,-502.02,0.00050136,120]
[357314369,1744004606108,-500.0,0.00050136,120]
[357314370,1744004606148,-500.0,0.0005041,120]
[357314371,1744004606185,-500.0,0.0005041,120]
[357314372,1744004606223,-500.0,0.0005041,120]
[357314373,1744004606260,-500.0,0.0005041,120]
[357314374,1744004606296,-500.0,0.0005041,120]
[357314375,1744004606333,-500.0,0.0005041,120]
[357314376,1744004606376,-502.02,0.0005041,120]
[357314377,1744004606416,-500.0,0.0005041,120]
[357314378,1744004606455,-500.0,0.00050684,120]
[357314379,1744004606493,-500.0,0.00050684,120]
[357314380,1744004606530,-500.0,0.00050684,120]
[357314381,1744004606571,-500.0,0.00050684,120]
[357314382,1744004606611,-500.0,0.00050684,120]
[357314383,1744004606650,-500.0,0.00050684,120]
[357314384,1744004606690,-502.02,0.00050684,120]
[357314385,1744004606728,-500.0,0.00050684,120]
[357314386,1744004606767,-500.0,0.00050958,120]
[357314387,1744004606806,-500.0,0.00050958,120]
[357314388,1744004606842,-500.0,0.00050958,120]
[357314389,1744004606879,-500.0,0.00050958,120]
[357314390,1744004606917,-500.0,0.00050958,120]
[357314391,1744004606957,-500.0,0.00050958,120]
[357314392,1744004606997,-502.02,0.00050958,120]
[357314393,1744004607036,-500.0,0.00050958,120]
[357314394,1744004607075,-500.0,0.00051232,120]
[357314395,1744004607112,-500.0,0.00051232,120]
[357314396,1744004607150,-642.05940355,0.00051232,120]
[357314397,1744004607188,-500.0,0.00051232,120]
[357314398,1744004607227,-187.0291718,0.00051232,120]
[357314399,1744004607266,-209.25938273,0.00051232,120]
[357314400,1744004607303,-502.02,0.00051232,120]
[357314401,1744004607341,-500.0,0.00051232,120]
[357314402,1744004607380,-500.0,0.00051506,120]
[357314403,1744004607418,-500.0,0.00051506,120]
[357314404,1744004607457,-500.0,0.00051506,120]
[357314405,1744004607499,-502.02,0.00051506,120]
[357314406,1744004607537,-500.0,0.00051506,120]
[357314407,1744004607577,-500.0,0.0005178,120]
[357314408,1744004607615,-500.0,0.0005178,120]
[357314409,1744004607655,-574.72387179,0.0005178,120]
[357314410,1744004607695,-502.02,0.0005178,120]
[357314411,1744004607735,-500.0,0.00052054,120]
[357314412,1744004607772,-500.0,0.00052054,120]
[357314413,1744004607815,-502.02,0.00052054,120]
[357314414,1744004607858,-500.0,0.00052328,120]
[357314415,1744004607898,-500.0,0.00052328,120]
[357314416,1744004607938,-502.02,0.00052328,120]
[357314417,1744004607979,-500.0,0.00052602,120]
[357314418,1744004608018,-500.0,0.00052602,120]
[357314419,1744004608058,-502.02,0.00052602,120]
[357314420,1744004608098,-500.0,0.00052876,120]
[357314421,1744004608138,-500.0,0.00052876,120]
[357314422,1744004608176,-502.02,0.00052876,120]
[357314423,1744004608220,-500.0,0.0005315,120]
[357314424,1744004608264,-500.0,0.0005315,120]
[357314425,1744004608487,-502.02,0.0005315,120]
[357314426,1744004608530,-500.0,0.00053424,120]
[357314427,1744004608568,-500.0,0.00053424,120]
[357314428,1744004608605,-502.02,0.00053424,120]
[357314429,1744004608643,-500.0,0.00053698,120]
[357314430,1744004608681,-500.0,0.00053698,120]
[357314431,1744004608719,-502.02,0.00053698,120]
[357314432,1744004608755,-500.0,0.00053972,120]
[357314433,1744004608792,-500.0,0.00053972,120]
[357314434,1744004608829,-502.02,0.00053972,120]
[357314435,1744004608868,-500.0,0.00054246,120]
[357314436,1744004608904,-500.0,0.00054246,120]
[357314437,1744004608942,-502.02,0.00054246,120]
[357314438,1744004608978,-500.0,0.0005452,120]
[357314439,1744004609015,-500.0,0.0005452,120]
[357314440,1744004609051,-502.02,0.0005452,120]
[357314441,1744004609104,-561.26968615,0.00054794,120]
[357314442,1744004609145,-496.76290491,0.00054794,120]
[357314443,1744004609187,-151.0,0.000555,120]
[357314444,1744004609227,-151.0,0.000555,120]
[357314445,1744004609268,-151.0,0.00055616,120]
[357314446,1744004609309,-151.0,0.00055616,120]
[357314447,1744004609350,-151.0,0.00056,120]
[357314448,1744004609391,-151.0,0.00056,120]
[357314449,1744004609432,-151.0,0.000565,120]
[357314450,1744004609475,-587.26682169,0.00056555,120]
[357314451,1744004609516,-151.0,0.00057,120]